fUSD/lending_fUSD_20241216
["ID","MTS","AMOUNT","RATE_DAILY","PERIOD"]
[345557988,1734353438230,-975.93,0.00018438,2]
[345557989,1734353438239,-504.52397488,0.00018438,2]
[345557990,1734353438425,-471.40602512,0.00018438,2]
[345557991,1734353438435,-975.93,0.00018438,2]
[345557992,1734353438444,-975.93,0.00018438,2]
[345557993,1734353438453,-975.93,0.00018438,2]
[345557994,1734353438463,-150.0,0.000185,2]
[345557995,1734353438472,-150.0,0.000185,2]
[345557996,1734353438482,-364.71,0.000185,2]
[345557997,1734353438491,-150.0,0.000185,2]
[345557998,1734353438501,-435.78,0.000185,2]
[345557999,1734353438510,-27131.0,0.00018509,3]
[345558000,1734353438521,-3772.64902687,0.00018509,2]
[345558001,1734353438533,-4066.48581385,0.00018509,2]
[345558052,1734353439148,-1662.62138725,0.00018509,2]
[345558069,1734353440101,-295.80149997,0.00018509,2]
[345558070,1734353440212,-886.89675432,0.00018509,2]
[345558071,1734353440224,-207.56651774,0.00018509,2]
[345558072,1734353440235,-156.68376426,0.00018548,2]
[345558073,1734353440247,-819.24623574,0.00018548,2]
[345558074,1734353440257,-975.93,0.00018548,2]
[345558075,1734353440267,-435.78,0.00018548,2]
[345558076,1734353440276,-350.45,0.00018548,2]
[345558077,1734353440285,-150.0,0.000186,2]
[345558078,1734353440294,-300.34,0.000186,2]
[345558079,1734353440303,-150.0,0.000186,2]
[345558080,1734353440313,-364.71,0.000186,2]
[345558081,1734353440323,-357.80484423,0.000186,2]
[345558082,1734353440334,-6.90515577,0.000186,2]
[345558083,1734353440347,-287.86120023,0.000186,2]
[345558084,1734353440933,493.87,0.000179,2]
[345558090,1734353443585,-169.46879977,0.000186,2]
[345558091,1734353443596,-150.0,0.000186,2]
[345558092,1734353443606,-150.0,0.000186,2]
[345558093,1734353443615,-150.0,0.000186,2]
[345558094,1734353443625,-4717.04437728,0.00018618,2]
[345558095,1734353443634,-179.17,0.00018626,2]
[345558096,1734353443643,-2825.70034,0.0001863,2]
[345558097,1734353443652,-2000.0,0.00018667,2]
[345558098,1734353443661,-2500.0,0.0001868,2]
[345558099,1734353443670,-150.0,0.000187,2]
[345558100,1734353443679,-364.71,0.000187,2]
[345558101,1734353443688,-150.0,0.000187,2]
[345558102,1734353443698,-150.0,0.000187,2]
[345558103,1734353443707,-150.0,0.000187,2]
[345558104,1734353443716,-435.78,0.000187,2]
[345558105,1734353443726,-220.0,0.00018718,2]
[345558106,1734353443735,-164.59,0.00018751,2]
[345558107,1734353443743,-2120.84152761,0.0001878,2]
[345558108,1734353443770,-1654.15847239,0.0001878,2]
[345558109,1734353443779,-375.54739621,0.0001878,2]
[345558110,1734353443829,-54.35583652,0.0001878,2]
[345558111,1734353446028,-561.08615456,0.0001878,2]
[345558112,1734353446040,-740.40033588,0.0001878,2]
[345558113,1734353446086,-729.12371714,0.0001878,2]
[345558114,1734353446199,-114.80833979,0.0001878,2]
[345558115,1734353446210,-432.02656024,0.0001878,2]
[345558116,1734353446256,-4919.07120143,0.0001878,2]
[345558117,1734353446314,-4295.47808858,0.0001878,2]
[345558118,1734353446373,-29195.099,0.0001878,2]
[345558119,1734353446384,-1034.05360558,0.0001878,2]
[345558120,1734353446432,-291.95288832,0.0001878,2]
[345558121,1734353446443,-309.99,0.0001878,2]
[345558126,1734353494127,157.31,0.00010137,2]
[345558127,1734353520082,32365.57843794,0.00018,2]
[345558128,1734354244260,179.85,0.00013699,2]
[345558129,1734354277556,5039.90495055,0.00021,120]
[345558130,1734354377732,154.5,0.00010137,2]
[345558132,1734354433147,-221.98483306,0.00015709,2]
[345558133,1734354438149,-198.30812975,0.00015709,2]
[345558134,1734354545087,-278.78703719,0.00015709,2]
[345558135,1734354545108,-200.0,0.0001727,2]
[345558136,1734354545129,-162.26,0.00017279,2]
[345558137,1734354545149,-200.0,0.00017284,2]
[345558138,1734354545175,-787.49,0.00017372,2]
[345558139,1734354545198,-250.0,0.0001739,2]
[345558140,1734354545219,-300.0,0.00017408,2]
[345558141,1734354545240,-13304.0055105,0.00017409,2]
[345558142,1734354558104,-1844.389,0.00017184,2]
[345558143,1734354558126,-402.64350845,0.00017409,2]
[345558144,1734354559096,-10193.35098105,0.00017409,2]
[345558145,1734354559117,-388.19,0.00017436,2]
[345558146,1734354559136,-2845.23,0.00017446,2]
[345558147,1734354559157,-168.88,0.00017446,2]
[345558148,1734354559178,-1000.0,0.0001752,2]
[345558149,1734354559202,-1577.69,0.00017533,2]
[345558150,1734354559336,-689.88009046,0.00017544,2]
[345558151,1734354559358,-232.06,0.00017581,2]
[345558152,1734354559380,-250.0,0.00017597,2]
[345558153,1734354559400,-250.0,0.00017597,2]
[345558154,1734354559422,-3379.76,0.00017645,2]
[345558155,1734354559441,-379.83,0.00017691,2]
[345558156,1734354559462,-500.0,0.00017726,2]
[345558157,1734354559482,-195.82,0.00017813,2]
[345558158,1734354559502,-827.53425144,0.00017828,2]
[345558159,1734354559521,-1626.4196773,0.0001783,2]
[345558160,1734354559549,-7.5903227,0.0001783,2]
[345558161,1734354559571,-250.0,0.00017928,2]
[345558162,1734354559592,-699.08,0.00017973,2]
[345558163,1734354559612,-17595.42156206,0.00018,2]
[345558166,1734354584964,713.77,0.0001764,2]
[345558173,1734354632211,-164.59,0.00018082,2]
[345558174,1734354632222,-6463.2793,0.00018099,2]
[345558175,1734354632231,-172.63,0.00018125,2]
[345558176,1734354632241,-2832.55,0.00018157,2]
[345558177,1734354632253,-34936.11181036,0.00018199,2]
[345558178,1734354632265,-600.0,0.00018199,2]
[345558179,1734354632431,-14463.88818964,0.00018199,2]
[345558180,1734354632440,-169.06318982,0.00018433,2]
[345558181,1734354632450,-169.06318981,0.00018528,2]
[345558182,1734354632459,-21943.31,0.00018533,2]
[345558183,1734354632471,-326.95,0.00018533,2]
[345558184,1734354632482,-970.1,0.00018533,2]
[345558185,1734354632491,-150.99,0.00018533,2]
[345558186,1734354632501,-3966.54,0.00018533,2]
[345558187,1734354632510,-952.61,0.00018533,2]
[345558188,1734354632520,-150.99,0.00018533,2]
[345558189,1734354632529,-19262.97,0.00018533,2]
[345558190,1734354632538,-1345.19,0.00018533,2]
[345558191,1734354632548,-9999.99,0.00018533,2]
[345558192,1734354632558,-476.45,0.00018533,2]
[345558193,1734354632567,-1924.29,0.00018533,2]
[345558194,1734354632577,-391.61,0.00018533,2]
[345558195,1734354632586,-382.92,0.00018533,2]
[345558196,1734354632600,-5594.56,0.00018533,2]
[345558197,1734354632610,-150.0,0.00018543,2]
[345558198,1734354632622,-200.0,0.00018543,2]
[345558199,1734354632635,-209.39,0.00018543,2]
[345558200,1734354632646,-150.0,0.00018549,2]
[345558201,1734354632656,-201.18800118,0.00018553,2]
[345558202,1734354632666,-150.0,0.00018565,2]
[345558203,1734354632676,-150.0,0.00018586,2]
[345558204,1734354632687,-2354.75028,0.0001859,2]
[345558205,1734354632696,-150.0,0.00018608,2]
[345558206,1734354632706,-8239.32933674,0.00018618,2]
[345558207,1734354632716,-11431.97571591,0.00018618,2]
[345558208,1734354632725,-169.06318981,0.00018623,2]
[345558209,1734354632735,-150.0,0.00018637,2]
[345558210,1734354632744,-150.0,0.0001866,2]
[345558211,1734354632753,-150.0,0.00018661,2]
[345558212,1734354632763,-150.0,0.00018665,2]
[345558214,1734354632772,-2000.0,0.00018666,2]
[345558216,1734354632782,-500.0,0.00018666,2]
[345558218,1734354632792,-500.0,0.00018666,2]
[345558220,1734354632801,-2000.0,0.00018667,2]
[345558222,1734354632811,-500.0,0.00018667,2]
[345558224,1734354632820,-500.0,0.00018667,2]
[345558226,1734354632829,-200.0,0.00018667,2]
[345558227,1734354632838,-150.0,0.00018668,2]
[345558228,1734354632849,-150.0,0.00018676,2]
[345558229,1734354632859,-150.0,0.00018678,2]
[345558230,1734354632871,-500.0,0.0001868,2]
[345558231,1734354632881,-150.0,0.00018691,2]
[345558232,1734354632890,-1963.0,0.000187,2]
[345558233,1734354632900,-195.82,0.00018703,2]
[345558234,1734354632910,-150.0,0.00018706,2]
[345558235,1734354632919,-150.0,0.00018718,2]
[345558236,1734354632929,-169.06318981,0.00018718,2]
[345558237,1734354632939,-150.0,0.00018765,2]
[345558238,1734354632949,-502.19608414,0.00018773,2]
[345558239,1734354632959,-150.0,0.00018773,2]
[345558240,1734354632969,-252250.59099621,0.0001878,4]
[345558241,1734354632979,-1131.89670599,0.0001878,2]
[345558242,1734354632988,-233794.92682108,0.0001878,2]
[345558243,1734354633001,-25596.8313056,0.0001878,2]
[345558244,1734354633016,-3090.44816829,0.0001878,2]
[345558248,1734354638123,-1035.2342,0.0001878,2]
[345558249,1734354638232,-1216.60498056,0.0001878,2]
[345558250,1734354638247,-2069.2,0.0001878,2]
[345558251,1734354638259,-2048.00218,0.0001878,2]
[345558252,1734354638293,-7874.4,0.0001878,2]
[345558253,1734354638304,-602.23702846,0.0001878,2]
[345558254,1734354638403,-282223.6789106,0.0001878,2]
[345558255,1734354638413,-3879.99943909,0.0001878,2]
[345558256,1734354638422,-150.0,0.00018804,2]
[345558257,1734354638431,-250000.0,0.0001881,2]
[345558258,1734354638441,-192107.8190782,0.00018815,2]
[345558259,1734354638450,-13145.21865244,0.00018815,2]
[345558260,1734354638459,-17374.90680077,0.00018815,2]
[345558261,1734354638469,-1175.7192,0.00018816,2]
[345558262,1734354638479,-13010.6605036,0.00018816,2]
[345558263,1734354638489,-1000.0,0.00018816,2]
[345558264,1734354638498,-543.01,0.00018817,2]
[345558265,1734354638507,-2658.13643746,0.00018817,2]
[345558266,1734354638516,-21103237.27904505,0.00018817,2]
[345558267,1734354638526,-9834334.58,0.00018817,2]
[345558268,1734354638536,-151.718742,0.00018818,2]
[345558269,1734354638545,-214.084545,0.00018818,2]
[345558270,1734354638555,-151.372849,0.00018818,2]
[345558271,1734354638564,-151.0,0.00018818,2]
[345558272,1734354638576,-151.0,0.00018818,2]
[345558273,1734354638585,-151.0,0.00018818,2]
[345558274,1734354638595,-151.0,0.00018818,2]
[345558275,1734354638604,-151.0,0.00018818,2]
[345558276,1734354638614,-151.0,0.00018818,2]
[345558277,1734354638627,-151.0,0.00018818,2]
[345558278,1734354638636,-151.0,0.00018818,2]
[345558279,1734354638646,-151.0,0.00018818,2]
[345558280,1734354638655,-151.0,0.00018818,2]
[345558281,1734354638664,-151.0,0.00018818,2]
[345558282,1734354638674,-151.0,0.00018818,2]
[345558283,1734354638683,-151.0,0.00018818,2]
[345558284,1734354638693,-182.907623,0.00018818,2]
[345558285,1734354638702,-151.0,0.00018818,2]
[345558286,1734354638711,-151.0,0.00018818,2]
[345558287,1734354638721,-151.0,0.00018818,2]
[345558288,1734354638731,-151.0,0.00018818,2]
[345558289,1734354638740,-151.0,0.00018818,2]
[345558290,1734354638750,-151.0,0.00018818,2]
[345558291,1734354638760,-151.0,0.00018818,2]
[345558292,1734354638769,-151.0,0.00018818,2]
[345558293,1734354638779,-151.0,0.00018818,2]
[345558294,1734354638789,-151.0,0.00018818,2]
[345558295,1734354638798,-151.601524,0.00018818,2]
[345558296,1734354638807,-151.0,0.00018818,2]
[345558297,1734354638817,-151.0,0.00018818,2]
[345558298,1734354638826,-151.0,0.00018818,2]
[345558299,1734354638836,-151.0,0.00018818,2]
[345558300,1734354638845,-151.571901,0.00018818,2]
[345558301,1734354638855,-151.0,0.00018818,2]
[345558302,1734354638865,-151.0,0.00018818,2]
[345558303,1734354638877,-151.0,0.00018818,2]
[345558304,1734354638887,-151.0,0.00018818,2]
[345558305,1734354638896,-151.0,0.00018818,2]
[345558306,1734354638905,-151.0,0.00018818,2]
[345558307,1734354638915,-1000.0,0.00018818,2]
[345558308,1734354638924,-1000.0,0.00018818,2]
[345558309,1734354638933,-1000.0,0.00018818,2]
[345558310,1734354638942,-1000.0,0.00018818,2]
[345558311,1734354638951,-1000.0,0.00018818,2]
[345558312,1734354638961,-1000.0,0.00018818,2]
[345558313,1734354638970,-1000.0,0.00018818,2]
[345558314,1734354638979,-1000.0,0.00018818,2]
[345558315,1734354638988,-1000.0,0.00018818,2]
[345558316,1734354638997,-1000.0,0.00018818,2]
[345558317,1734354639093,-1000.0,0.00018818,2]
[345558318,1734354639102,-1000.0,0.00018818,2]
[345558319,1734354639112,-1000.0,0.00018818,2]
[345558320,1734354639123,-1000.0,0.00018818,2]
[345558321,1734354639131,-1000.0,0.00018818,2]
[345558322,1734354639141,-1000.0,0.00018818,2]
[345558323,1734354639149,-1000.0,0.00018818,2]
[345558324,1734354639159,-1000.0,0.00018818,2]
[345558325,1734354639168,-1000.0,0.00018818,2]
[345558326,1734354639177,-1000.0,0.00018818,2]
[345558327,1734354639187,-1000.0,0.00018818,2]
[345558328,1734354639197,-1000.0,0.00018818,2]
[345558329,1734354639207,-1000.0,0.00018818,2]
[345558330,1734354639219,-1000.0,0.00018818,2]
[345558331,1734354639228,-1000.0,0.00018818,2]
[345558332,1734354639237,-1000.0,0.00018818,2]
[345558333,1734354639248,-1000.0,0.00018818,2]
[345558334,1734354639259,-1000.0,0.00018818,2]
[345558335,1734354639268,-1000.0,0.00018818,2]
[345558336,1734354639277,-1000.0,0.00018818,2]
[345558337,1734354639287,-1000.0,0.00018818,2]
[345558338,1734354639297,-1000.0,0.00018818,2]
[345558339,1734354639306,-1000.0,0.00018818,2]
[345558340,1734354639315,-1000.0,0.00018818,2]
[345558341,1734354639324,-1000.0,0.00018818,2]
[345558342,1734354639333,-1000.0,0.00018818,2]
[345558343,1734354639342,-1000.0,0.00018818,2]
[345558344,1734354639351,-1000.0,0.00018818,2]
[345558345,1734354639363,-1000.0,0.00018818,2]
[345558346,1734354639373,-1000.0,0.00018818,2]
[345558347,1734354639382,-1000.0,0.00018818,2]
[345558348,1734354639392,-1000.0,0.00018818,2]
[345558349,1734354639401,-1000.0,0.00018818,2]
[345558350,1734354639412,-1000.0,0.00018818,2]
[345558351,1734354639421,-1000.0,0.00018818,2]
[345558352,1734354639431,-1000.0,0.00018818,2]
[345558353,1734354639440,-1000.0,0.00018818,2]
[345558354,1734354639449,-1000.0,0.00018818,2]
[345558355,1734354639459,-1000.0,0.00018818,2]
[345558356,1734354639468,-1000.0,0.00018818,2]
[345558357,1734354639477,-1000.0,0.00018818,2]
[345558358,1734354639487,-1000.0,0.00018818,2]
[345558359,1734354639497,-1000.0,0.00018818,2]
[345558360,1734354639506,-1000.0,0.00018818,2]
[345558361,1734354639515,-1000.0,0.00018818,2]
[345558362,1734354639525,-1000.0,0.00018818,2]
[345558363,1734354639534,-1000.0,0.00018818,2]
[345558364,1734354639544,-1000.0,0.00018818,2]
[345558365,1734354639554,-1000.0,0.00018818,2]
[345558366,1734354639563,-1000.0,0.00018818,2]
[345558367,1734354639573,-1045.0,0.00018818,2]
[345558368,1734354639584,-2462.7583652,0.00018821,2]
[345558369,1734354639593,-5951.5522428,0.00018821,2]
[345558370,1734354639603,-514.81748237,0.00018873,2]
[345558371,1734354639614,-500.0,0.00018873,2]
[345558372,1734354639624,-159.61493728,0.00018873,2]
[345558373,1734354639635,-500.0,0.00018873,2]
[345558374,1734354639645,-500.0,0.00018873,2]
[345558375,1734354639654,-1000.0,0.000189,2]
[345558376,1734354639676,-1000.0,0.000189,2]
[345558377,1734354639694,-1000.0,0.000189,2]
[345558378,1734354639713,-1000.0,0.000189,2]
[345558379,1734354639731,-741.0,0.000189,2]
[345558380,1734354639747,-1000.0,0.000189,2]
[345558381,1734354639764,-1000.0,0.000189,2]
[345558382,1734354639784,-1000.0,0.000189,2]
[345558383,1734354639802,-1000.0,0.000189,2]
[345558384,1734354639824,-7718.21172664,0.00018932,2]
[345558385,1734354639841,-543.01,0.00018954,2]
[345558386,1734354639860,-576.617,0.0001898,2]
[345558387,1734354639877,-503.23802628,0.00019,3]
[345558388,1734354639894,-500.0,0.00019,2]
[345558389,1734354639910,-543.01,0.00019091,2]
[345558390,1734354639926,-1004.0,0.000191,2]
[345558391,1734354639943,-1295.0,0.00019105,2]
[345558392,1734354639956,-150.0,0.00019177,2]
[345558393,1734354639974,-506.22544525,0.00019178,2]
[345558394,1734354639991,-200.0,0.00019179,2]
[345558395,1734354640006,-543.01,0.00019228,2]
[345558396,1734354640021,-4623.783,0.000193,2]
[345558397,1734354640036,-153.236,0.000193,2]
[345558398,1734354640055,-150.0,0.00019314,2]
[345558399,1734354640070,-1754.46969775,0.00019316,2]
[345558400,1734354640084,-543.01,0.00019365,2]
[345558401,1734354640099,-848.51628063,0.0001939,2]
[345558402,1734354640114,-848.51628064,0.0001939,2]
[345558403,1734354640131,-164.59,0.0001942,2]
[345558404,1734354640146,-1000.0,0.00019421,2]
[345558405,1734354640160,-150.0,0.00019451,2]
[345558406,1734354640175,-3882.0,0.00019457,2]
[345558407,1734354640191,-1168.0,0.00019457,2]
[345558408,1734354640209,-281.319,0.00019457,2]
[345558409,1734354640228,-13738.0,0.00019457,2]
[345558410,1734354640243,-543.01,0.00019502,2]
[345558411,1734354640260,-787.49,0.00019543,2]
[345558412,1734354640276,-150.0,0.00019588,2]
[345558413,1734354640293,-150.0,0.00019591,2]
[345558414,1734354640309,-195.82,0.00019594,2]
[345558415,1734354640325,-2531.0,0.000196,2]
[345558416,1734354640341,-543.01,0.00019639,2]
[345558417,1734354640357,-150.0,0.00019656,2]
[345558418,1734354640372,-216.842,0.00019656,2]
[345558419,1734354640387,-1267.181,0.00019656,2]
[345558420,1734354640402,-2008.0,0.00019656,2]
[345558421,1734354640417,-632.0,0.00019656,2]
[345558422,1734354640432,-200.87,0.00019656,2]
[345558423,1734354640448,-562.523,0.00019656,2]
[345558424,1734354640463,-1896.0,0.00019656,2]
[345558425,1734354640478,-817.0,0.00019656,2]
[345558426,1734354640494,-929.0,0.00019656,2]
[345558427,1734354640509,-3766.0,0.00019656,2]
[345558428,1734354640525,-1254.0,0.00019656,2]
[345558429,1734354640540,-3632.0,0.00019656,2]
[345558430,1734354640555,-535.0,0.00019656,2]
[345558431,1734354640570,-220020.96620224,0.000197,2]
[345558432,1734354640586,-1011.38013296,0.000197,2]
[345558433,1734354640601,-151.0,0.000197,2]
[345558434,1734354640617,-151.0,0.000197,2]
[345558435,1734354640766,-151.0,0.000197,2]
[345558436,1734354640778,-151.0,0.000197,2]
[345558437,1734354640788,-151.0,0.000197,2]
[345558438,1734354640798,-151.0,0.000197,2]
[345558439,1734354640808,-151.0,0.000197,2]
[345558440,1734354640818,-151.0,0.000197,2]
[345558441,1734354640828,-151.0,0.000197,2]
[345558442,1734354640838,-151.0,0.000197,2]
[345558443,1734354640847,-1000.0,0.0001971,2]
[345558444,1734354640858,-800.0,0.00019726,2]
[345558445,1734354640868,-800.0,0.00019726,2]
[345558446,1734354640881,-800.0,0.00019726,2]
[345558447,1734354640890,-800.0,0.00019726,2]
[345558448,1734354640900,-800.0,0.00019726,2]
[345558449,1734354640910,-803.07647774,0.00019726,2]
[345558450,1734354640920,-800.0,0.00019726,2]
[345558451,1734354640929,-800.0,0.00019726,2]
[345558452,1734354640939,-800.0,0.00019726,2]
[345558453,1734354640949,-800.0,0.00019726,2]
[345558454,1734354640958,-800.0,0.00019726,2]
[345558455,1734354640967,-800.0,0.00019726,2]
[345558456,1734354640977,-640.0,0.00019726,2]
[345558457,1734354640987,-543.01,0.00019776,2]
[345558458,1734354640996,-2000.0,0.000198,2]
[345558459,1734354641006,-2000.0,0.0001981,2]
[345558460,1734354641015,-2814.691036,0.0001982,2]
[345558461,1734354641025,-713.77,0.00019846,2]
[345558462,1734354641034,-157.31,0.00019895,2]
[345558463,1734354641044,-4672.72582379,0.000199,3]
[345558464,1734354641053,-230.0,0.000199,2]
[345558465,1734354641061,-972.6,0.000199,2]
[345558466,1734354641070,-543.01,0.00019913,2]
[345558467,1734354641080,-500.0,0.0001997,2]
[345558468,1734354641089,-500.0,0.0001997,2]
[345558469,1734354641099,-1000.0,0.0001997,2]
[345558470,1734354641109,-1000.0,0.0001997,2]
[345558471,1734354641120,-1000.0,0.0001997,2]
[345558472,1734354641134,-500.0,0.0001997,2]
[345558473,1734354641146,-1000.0,0.0001997,2]
[345558474,1734354641155,-500.0,0.0001997,2]
[345558475,1734354641165,-1000.0,0.0001997,2]
[345558476,1734354641174,-500.0,0.0001997,2]
[345558477,1734354641183,-1000.0,0.0001997,2]
[345558478,1734354641192,-500.0,0.0001997,2]
[345558479,1734354641202,-1000.0,0.0001997,2]
[345558480,1734354641214,-500.0,0.0001997,2]
[345558481,1734354641223,-500.0,0.00019973,2]
[345558483,1734354641232,-500.0,0.00019973,2]
[345558485,1734354641241,-500.0,0.00019973,2]
[345558486,1734354641250,-500.18351567,0.00019973,2]
[345558487,1734354641261,-500.6061957,0.00019973,2]
[345558488,1734354641271,-456336.55000421,0.0001998,2]
[345558489,1734354641280,-273.98384568,0.0001998,2]
[345558490,1734354641291,-50963.25060304,0.0001998,2]
[345558491,1734354641301,-500.0,0.0001998,2]
[345558492,1734354641311,-500.0,0.0001998,2]
[345558493,1734354641321,-9667.60675522,0.0001998,2]
[345558494,1734354641331,-90285.34701988,0.0001998,2]
[345558495,1734354641340,-151.0,0.0001998,2]
[345558496,1734354641350,-151.0,0.0001998,2]
[345558497,1734354641360,-151.0,0.0001998,2]
[345558498,1734354641370,-151.0,0.0001998,2]
[345558499,1734354641380,-151.0,0.0001998,2]
[345558500,1734354641390,-151.0,0.0001998,2]
[345558501,1734354641399,-151.0,0.0001998,2]
[345558502,1734354641408,-151.0,0.0001998,2]
[345558503,1734354641417,-151.0,0.0001998,2]
[345558504,1734354641428,-151.0,0.0001998,2]
[345558505,1734354641437,-151.0,0.0001998,2]
[345558506,1734354641448,-151.0,0.0001998,2]
[345558507,1734354641458,-151.0,0.0001998,2]
[345558508,1734354641467,-218.846323,0.0001998,2]
[345558509,1734354641477,-151.0,0.0001998,2]
[345558510,1734354641486,-151.0,0.0001998,2]
[345558511,1734354641495,-151.0,0.0001998,2]
[345558512,1734354641505,-151.0,0.0001998,2]
[345558513,1734354641514,-151.0,0.0001998,2]
[345558514,1734354641523,-235.313522,0.0001998,2]
[345558515,1734354641533,-151.0,0.0001998,2]
[345558516,1734354641542,-151.0,0.0001998,2]
[345558517,1734354641551,-151.0,0.0001998,2]
[345558518,1734354641560,-291.14903863,0.0001998,2]
[345558519,1734354641569,-151.0,0.0001998,2]
[345558520,1734354641579,-151.0,0.0001998,2]
[345558521,1734354641588,-151.0,0.0001998,2]
[345558522,1734354641597,-151.0,0.0001998,2]
[345558523,1734354641606,-126885.18886513,0.0001999,2]
[345558524,1734354641616,-489.23,0.0002,2]
[345558525,1734354641628,-9818.3258183,0.0002,4]
[345558526,1734354641637,-5000.0,0.0002,2]
[345558527,1734354641647,-70537.02725727,0.0002,10]
[345558528,1734354641657,-56873.82572916,0.0002,2]
[345558529,1734354641667,-1000.0,0.0002,2]
[345558530,1734354641677,-60007.38472396,0.0002,2]
[345558531,1734354641686,-3563.78854244,0.0002,2]
[345558532,1734354641695,-10000.0,0.0002,3]
[345558533,1734354641705,-4101.75151029,0.0002,2]
[345558534,1734354641714,-10560.0,0.0002,10]
[345558535,1734354641724,-2359.70815542,0.0002,2]
[345558536,1734354641734,-300.0,0.0002,2]
[345558537,1734354641743,-568.7970126,0.0002,2]
[345558538,1734354641753,-151.0,0.0002,2]
[345558539,1734354641762,-151.0,0.0002,2]
[345558540,1734354641772,-151.0,0.0002,2]
[345558541,1734354641781,-152.140916,0.0002,2]
[345558542,1734354641791,-152.284775,0.0002,2]
[345558543,1734354641800,-151.0,0.0002,2]
[345558544,1734354641809,-3000.0,0.0002,2]
[345558545,1734354641820,-152.387575,0.0002,2]
[345558546,1734354641830,-152.387575,0.0002,2]
[345558547,1734354641840,-2000.0,0.0002,2]
[345558548,1734354641849,-366.33808658,0.0002,2]
[345558549,1734354641859,-200.0,0.0002,2]
[345558550,1734354641868,-151.0,0.0002,2]
[345558551,1734354641881,-151.0,0.0002,2]
[345558552,1734354641891,-26090.0,0.0002,3]
[345558553,1734354641901,-26088.0,0.0002,3]
[345558554,1734354641910,-26088.0,0.0002,3]
[345558555,1734354641919,-151.0,0.0002,2]
[345558556,1734354641929,-26088.0,0.0002,3]
[345558557,1734354641938,-26088.0,0.0002,3]
[345558558,1734354641947,-26088.0,0.0002,3]
[345558559,1734354641957,-26088.0,0.0002,3]
[345558560,1734354641966,-26088.0,0.0002,3]
[345558561,1734354641975,-248.408352,0.0002,2]
[345558562,1734354641984,-151.0,0.0002,2]
[345558563,1734354641994,-151.0,0.0002,2]
[345558564,1734354642003,-151.0,0.0002,2]
[345558565,1734354642013,-151.0,0.0002,2]
[345558566,1734354642022,-151.0,0.0002,2]
[345558567,1734354642050,-151.0,0.0002,2]
[345558568,1734354642060,-151.562257,0.0002,2]
[345558569,1734354642069,-1210.6275,0.0002,2]
[345558570,1734354642080,-158.0,0.0002,2]
[345558571,1734354642090,-151.0,0.0002,2]
[345558572,1734354642100,-151.0,0.0002,2]
[345558573,1734354642110,-151.0,0.0002,2]
[345558574,1734354642119,-150.38269676,0.0002,4]
[345558575,1734354642133,-150.0,0.0002,4]
[345558576,1734354642142,-500.0,0.0002,4]
[345558577,1734354642151,-151.0,0.0002,2]
[345558578,1734354642243,-151.0,0.0002,2]
[345558579,1734354642254,-151.0,0.0002,2]
[345558580,1734354642264,-151.0,0.0002,2]
[345558581,1734354642273,-2000.0,0.0002001,2]
[345558582,1734354642283,-3923.017214,0.0002002,2]
[345558583,1734354642294,-598.32747897,0.00020021,2]